Cogmind - Beta 15 @@@ ROGUE MODE // 2025.08.22 @ 16:39:41 Player: beans Result: Destroyed by RM-MC9(g) with Beamcaster Performance ------------- Evolutions (3) 1500 Regions Visited (9) 1800 Robots Destroyed (75) 375 Value Destroyed (1891) 1891 Prototype IDs (26) 520 Alien Tech Used (0) 0 Bonus (533) 533 TOTAL SCORE: 6619 Bonus ------- High Alert Combat Kills 33 Entered Garrisons 200 Aligned with FarCom 300 Cogmind --------- Core Integrity 0/700 Matter 89/300 Energy 79/100 System Corruption 7% Temperature Cool (36) Movement Core (300) Ox5 Location -7/Lower Caves Parts ------- > --- POWER (1) -------- (None) > --- PROPULSION (2) --- (None) > --- UTILITY (7) ------ Modified TNC Improved Target Analyzer Shock Absorption System > --- WEAPON (3) ------- Heavy Ion Cannon Heavy Missile Launcher > --- INVENTORY (5) ---- Improved Weapon Shielding Plasma Cannon Remote Datajack Peak State ------------ > --- POWER ------------ Micro Nuclear Core > --- PROPULSION ------- Carbon-fiber Leg > --- UTILITY ---------- Improved Heat Sink Modified TNC Advanced Targeting Computer Target Analyzer Improved Weapon Shielding Reactive Plating Component Analysis Suite > --- WEAPON ----------- Flak Gun Heavy Assault Cannon > --- INVENTORY -------- Improved Weapon Shielding Heavy Ion Cannon Flak Gun Remote Datajack [Rating: 43] Favorites ----------- Power Micro Nuclear Core Engine Light Ion Engine Power Core Micro Nuclear Core Propulsion Carbon-fiber Leg Leg Carbon-fiber Leg Utility Modified TNC Device Component Analysis Suite Processor Modified TNC Protection Reactive Plating Weapon Heavy Ion Cannon Energy Gun Particle Gun Energy Cannon Heavy Ion Cannon Ballistic Gun Flak Gun Ballistic Cannon Heavy Assault Cannon Launcher Grenade Launcher Special Weapon Remote Datajack Build | -11 -10 -10 -10 -9 -8 -7 -7 -7 -7 ------- Run | Yrd Mat Min Exi Min Mat Fac Gar Fac Low Slots Evolved 6 | . . . . . 4 2 . . . Power . | . . . . . . . . . . Propulsion . | . . . . . . . . . . Utility 5 | . . . . . 3 2 . . . Weapon 1 | . . . . . 1 . . . . Parts Attached 34 | 5 . 2 1 2 4 18 . 1 1 Power 3 | 1 . . . 1 . 1 . . . Engine 2 | 1 . . . 1 . . . . . Core 1 | . . . . . . 1 . . . Reactor . | . . . . . . . . . . Propulsion 5 | 2 . . . . 2 1 . . . Treads . | . . . . . . . . . . Leg 5 | 2 . . . . 2 1 . . . Wheel . | . . . . . . . . . . Hover . | . . . . . . . . . . Flight . | . . . . . . . . . . Utility 11 | . . . 1 . . 9 . 1 . Device 5 | . . . . . . 4 . 1 . Storage . | . . . . . . . . . . Processor 4 | . . . 1 . . 3 . . . Hackware . | . . . . . . . . . . Protection 2 | . . . . . . 2 . . . Artifact . | . . . . . . . . . . Weapon 15 | 2 . 2 . 1 2 7 . . 1 Energy Gun 4 | 2 . 1 . 1 . . . . . Energy Cannon 1 | . . . . . . 1 . . . Ballistic Gun 3 | . . . . . 1 2 . . . Ballistic Cannon 4 | . . . . . 1 3 . . . Launcher 2 | . . 1 . . . . . . 1 Special Weapon 1 | . . . . . . 1 . . . Impact Weapon . | . . . . . . . . . . Slashing Weapon . | . . . . . . . . . . Piercing Weapon . | . . . . . . . . . . Special Melee Weapon . | . . . . . . . . . . Unidentified Prototypes 1 | . . . . . . 1 . . . Parts Lost 23 | . . . . 2 4 8 9 . . Power 2 | . . . . . . 1 1 . . Propulsion 5 | . . . . 1 1 2 1 . . Utility 7 | . . . . . . 3 4 . . Weapon 9 | . . . . 1 3 2 3 . . Highest Loss Streak 7 | . . . . 1 2 3 7 . . To Critical Strikes . | . . . . . . . . . . Average Backups 3 | 1 1 2 3 2 3 4 3 2 3 Power . | . . . . . 1 1 . . . Propulsion . | . . . . . . . . . . Utility . | . . . . . . . 1 1 1 Weapon 2 | 1 1 2 3 2 2 1 1 . 1 Tool/Special . | . . . . . . . . . . Unused Backups 2 | . . . . . . 1 . . 1 Power 1 | . . . . . . 1 . . . Propulsion . | . . . . . . . . . . Utility 1 | . . . . . . . . . 1 Weapon . | . . . . . . . . . . Tool/Special . | . . . . . . . . . . Average Slot Usage (%) 68 | . 71 71 81 79 45 69 66 28 30 Engine 6 | . 14 14 14 14 9 2 . . . Core 2 | . . . . . . 4 5 . . Leg 14 | . 28 28 28 22 9 9 5 . . Device 6 | . . . . . . 11 14 5 7 Processor 13 | . . . 10 14 9 16 21 15 15 Protection 3 | . . . . . . 6 5 . . Energy Gun 7 | . 28 21 14 25 11 . . . . Energy Cannon 2 | . . . . . . 3 5 7 7 Ballistic Gun 2 | . . . . . 4 5 . . . Ballistic Cannon 3 | . . . . . 1 6 5 . . Launcher 2 | . . 6 14 2 . . . . . Peak Build Rating 43 | 5 5 6 12 15 20 43 42 20 24 Average Rating 25 | 3 5 5 10 12 16 36 36 18 20 On Entrance 14 | . 5 5 6 12 15 20 42 15 20 Naked Turns . | . . . . . . . . . . Heaviest Build 40 | 5 5 9 9 13 14 40 38 11 11 Greatest Support 30 | 20 20 20 20 20 30 30 15 3 3 Greatest Overweight (x) 4 | 1 . . . 1 4 2 2 3 3 Average Overweight (x) . | . . . . . . 1 1 2 3 Largest Inventory Capacity 5 | 5 5 5 5 5 5 5 5 5 5 Average Capacity 5 | 5 5 5 5 5 5 5 5 5 5 Most Carried 5 | 3 1 3 4 5 5 5 4 3 4 Average Carried 3 | 1 1 2 3 2 3 4 3 2 3 Final Capacity 5 | 5 5 5 5 5 5 5 5 5 5 Final Carried 5 | 1 1 3 3 5 4 4 2 3 3 Class Distribution -------------------- 60% | Mutant 22% | Gunner 16% | Skirmisher Dominant Class ---------------- Mutant | -10/Materials Mutant | -10/Mines Mutant | -10/Exiles Mutant | -9/Mines Mutant | -8/Materials Skirmisher | -7/Factory Gunner | -7/Garrison Mutant | -7/Factory Mutant | -7/Lower Caves Resources | -11 -10 -10 -10 -9 -8 -7 -7 -7 -7 ----------- Run | Yrd Mat Min Exi Min Mat Fac Gar Fac Low Matter Collected 1605 | 218 32 18 . 152 107 984 56 . 38 Remotely . | . . . . . . . . . . Salvage Created 1895 | . 133 170 . 108 274 1002 161 . 47 Parts 107 | . 6 15 . 14 12 54 5 . 1 Haulers Intercepted 3 | . . . . . 1 2 . . . Recyclers Shooed 5 | . . 2 . . . 3 . . . Parts Field Recycled . | . . . . . . . . . . Retrieved Matter . | . . . . . . . . . . Parts Self-Destructed . | . . . . . . . . . . Prevented . | . . . . . . . . . . Kills | -11 -10 -10 -10 -9 -8 -7 -7 -7 -7 ------- Run | Yrd Mat Min Exi Min Mat Fac Gar Fac Low Combat Hostiles Destroyed 43 | . 2 5 . 8 7 13 7 . 1 Guns 20 | . 2 3 . 2 6 3 4 . . Cannons 14 | . . . . . 1 10 3 . . AOE 9 | . . 2 . 6 . . . . 1 Classes Destroyed 11 | . 3 2 . . 2 4 . . . Worker 14 | . 1 2 . . 1 10 . . . Builder 1 | . . . . . . 1 . . . Tunneler 4 | . . 1 . 1 . 2 . . . Hauler 3 | . . . . . 1 2 . . . Recycler 6 | . . . . . . 6 . . . Mechanic 1 | . . . . . . 1 . . . Watcher 3 | . 1 . . . . 2 . . . Swarmer 19 | . . 3 . 7 3 4 2 . . Grunt 15 | . 2 2 . 1 3 3 4 . . Sentry 1 | . . . . . 1 . . . . Programmer 7 | . . . . . . 6 1 . . Thug 1 | . . . . . . . . . 1 Best Kill Streak 8 | . 2 4 . 6 3 8 6 . 1 Combat Bots Only 6 | . 2 3 . 6 3 4 6 . 1 Max Kills in Single Turn 7 | . 1 2 . 2 2 7 1 . 1 Gunslinging . | . . . . . . . . . . Exploded 2 | . . 1 . 2 . . . . 1 Melee . | . . . . . . . . . . Uniques/NPCs Destroyed . | . . . . . . . . . . Combat | -11 -10 -10 -10 -9 -8 -7 -7 -7 -7 -------- Run | Yrd Mat Min Exi Min Mat Fac Gar Fac Low Hostile Shots Fired 364 | . 13 18 . 37 71 85 136 . 4 Missed 117 | . 3 6 . 14 22 26 45 . 1 Hits 247 | . 10 12 . 23 49 59 91 . 3 Melee 1 | . . . . . 1 . . . . Projectile 246 | . 10 12 . 23 48 59 91 . 3 Critical Strikes 6 | . . . . . 4 . 1 . 1 Damage Taken 3461 | . 109 134 . 269 730 832 1288 . 99 Core 1209 | . 53 53 . 82 307 72 588 . 54 Absorbed by Shields 74 | . . . . . . . 74 . . Redirected to Shielding 100 | . . . . . . 100 . . . Ignored by Resistances 114 | . . . . . . 71 43 . . Core Remaining (%) 56 | 100 . . . 24 44 . . . . Volleys Fired 219 | . 10 17 . 22 45 95 28 . 2 Largest 3 | . 2 2 . 2 3 3 3 . 1 Hottest 129 | . 80 105 . 105 129 108 121 . 65 Shots Fired 354 | . 20 34 . 40 76 143 39 . 2 Gun 207 | . 20 30 . 32 60 48 17 . . Cannon 132 | . . . . . 16 93 22 . 1 Launcher 13 | . . 4 . 8 . . . . 1 Special 2 | . . . . . . 2 . . . Kinetic 193 | . . . . . 38 122 33 . . Thermal 146 | . 20 30 . 32 38 19 6 . 1 Explosive 13 | . . 4 . 8 . . . . 1 Electromagnetic . | . . . . . . . . . . Robot Hit Streak 12 | . 4 5 . 8 10 9 12 . 2 Robot Miss Streak 9 | . 2 2 . 5 7 9 5 . . Penetration Max . | . . . . . . . . . . Secondary Targets 4 | . . . . . 1 . 3 . . Max Gunslinging Chain 1 | . . . . . 1 . 1 . . Shots Hit Robots 207 | . 12 16 . 18 44 86 29 . 2 Core Hits 150 | . 8 11 . 15 16 70 27 . 3 Critical Kills . | . . . . . . . . . . Critical Parts Destroyed . | . . . . . . . . . . Critical Strikes 9 | . . . . . 2 6 1 . . Burn 2 | . . . . . 2 . . . . Blast 7 | . . . . . . 6 1 . . Melee Attacks . | . . . . . . . . . . Impact . | . . . . . . . . . . Slashing . | . . . . . . . . . . Piercing . | . . . . . . . . . . Sneak Attacks . | . . . . . . . . . . Combat Hostiles . | . . . . . . . . . . Follow-up Attacks . | . . . . . . . . . . Damage Inflicted 5593 | . 146 383 . 430 705 2750 993 . 186 Guns 1928 | . 146 173 . 236 449 585 339 . . Cannons 2580 | . . . . . 256 1644 654 . 26 Explosions 1085 | . . 210 . 194 . 521 . . 160 Melee . | . . . . . . . . . . Ramming . | . . . . . . . . . . Kinetic 3262 | . . . . . 441 1908 913 . . Thermal 1744 | . 146 173 . 236 264 819 80 . 26 Explosive 564 | . . 210 . 194 . . . . 160 Electromagnetic 23 | . . . . . . 23 . . . Impact . | . . . . . . . . . . Slashing . | . . . . . . . . . . Piercing . | . . . . . . . . . . Highest Corruption 7 | . . . . . . 4 7 7 7 Average Corruption 3 | . . . . . . 2 6 7 7 Corruption Purged . | . . . . . . . . . . Corruption Blocked . | . . . . . . . . . . Effects 49 | . . . . . . 33 12 3 1 Message Errors 12 | . . . . . . 8 3 1 . Matter Fused 5 | . . . . . . 3 2 . . Heat Flow Errors 8 | . . . . . . 4 3 1 . Energy Discharges 4 | . . . . . . 2 2 . . Parts Rejected 1 | . . . . . . 1 . . . Data Loss (minor) 7 | . . . . . . 5 . 1 1 Data Loss (major) 4 | . . . . . . 4 . . . Misfires 3 | . . . . . . 2 1 . . Alerts 3 | . . . . . . 2 1 . . Weapon Failures 2 | . . . . . . 2 . . . Overload Shots . | . . . . . . . . . . Overflow Damage 275 | . . 4 . . . 268 3 . . Projectiles 115 | . . . . . . 112 3 . . Explosions 160 | . . 4 . . . 156 . . . Melee . | . . . . . . . . . . Knockbacks 13 | . . . . . 1 8 4 . . Impact . | . . . . . . . . . . Kinetic 13 | . . . . . 1 8 4 . . Secondary . | . . . . . . . . . . Self-Inflicted Damage 110 | . . 12 . 62 . . . . 36 Shots 4 | . . 1 . 2 . . . . 1 Rammed . | . . . . . . . . . . Targets Rammed . | . . . . . . . . . . Kicked . | . . . . . . . . . . Crushed . | . . . . . . . . . . Highest Temperature 354 | . 147 162 . 219 354 238 227 245 . Average Temperature 68 | . 55 64 . 71 82 41 79 126 . Received Heat Transfer 1182 | . 57 54 . 24 378 99 525 . 45 Effects 1 | . . . . . 1 . . . . Shutdowns 1 | . . . . . 1 . . . . Siege Activations . | . . . . . . . . . . Martial Activations . | . . . . . . . . . . Shielding Activations . | . . . . . . . . . . Robots Disrupted . | . . . . . . . . . . Combat Hostiles . | . . . . . . . . . . Robots Corrupted . | . . . . . . . . . . Combat Hostiles . | . . . . . . . . . . Parts Fried . | . . . . . . . . . . Impact Corruptions . | . . . . . . . . . . Robots Melted . | . . . . . . . . . . Combat Hostiles . | . . . . . . . . . . Parts Melted 7 | . . . . 3 4 . . . . Heat Transferred 3027 | . 325 399 . 570 791 794 111 . 37 Parts Sabotaged . | . . . . . . . . . . Parts Stolen . | . . . . . . . . . . Parts Stripped . | . . . . . . . . . . Power Chain Reactions . | . . . . . . . . . . Alert | -11 -10 -10 -10 -9 -8 -7 -7 -7 -7 ------- Run | Yrd Mat Min Exi Min Mat Fac Gar Fac Low Maximum Alert Level 2 | . . . . . . 2 2 1 . Low Security (%) 50 | 100 100 100 . 100 100 29 . 31 . Level 1 46 | . . . . . . 67 77 68 . Level 2 3 | . . . . . . 2 22 . . Level 3 . | . . . . . . . . . . Level 4 . | . . . . . . . . . . Level 5 . | . . . . . . . . . . High Security . | . . . . . . . . . . Max Security . | . . . . . . . . . . Peak Influence 467 | . 50 109 . 180 105 419 467 239 . Initial 262 | . . 19 . . 3 47 262 239 . Average 188 | . 4 48 . 102 11 247 322 214 . Influence Increases 1860 | . 62 159 . 245 212 897 285 . . Destroy 0b10 Robot/C 840 | . 40 100 . 160 140 260 140 . . Destroy 0b10 Robot/NC 160 | . 10 15 . 5 10 120 . . . Destroy Leader 172 | . 12 20 . 20 32 78 10 . . Successful Hack 11 | . . . . . . 11 . . . Disable Machine 360 | . . . . . . 360 . . . Anti-Garrison Action 50 | . . . . . . . 50 . . Destroy Structure 147 | . . 24 . 45 . 68 10 . . Partial Spotted 15 | . . . . . 15 . . . . Lose Combat Pursuer 105 | . . . . 15 15 . 75 . . Influence Decreases 1762 | . 12 160 49 234 118 627 203 268 91 Entered New Map 548 | . . 31 49 . 8 58 113 218 71 Time Decay 1030 | . 12 129 . 214 90 515 . 50 20 Lost Part 184 | . . . . 20 20 54 90 . . Squads Dispatched 6 | . 1 . . . 1 4 . . . Investigation 1 | . . . . . 1 . . . . Extermination 4 | . . . . . . 4 . . . Reinforcement 1 | . 1 . . . . . . . . Assault . | . . . . . . . . . . Garrison . | . . . . . . . . . . Intercept . | . . . . . . . . . . Searches Triggered . | . . . . . . . . . . Construction Impeded . | . . . . . . . . . . Haulers Reinforced . | . . . . . . . . . . Active Scanning Responses . | . . . . . . . . . . Cargo Convoy Interrupts . | . . . . . . . . . . Stealth | -11 -10 -10 -10 -9 -8 -7 -7 -7 -7 --------- Run | Yrd Mat Min Exi Min Mat Fac Gar Fac Low Distress Signals 4 | . . 1 . . 3 . . . . Communications Jammed . | . . . . . . . . . . Distress Signals . | . . . . . . . . . . Times Spotted 80 | . 8 5 . 7 19 18 19 . 4 Peak Tracking Total 8 | . 4 3 . 4 6 4 8 . 4 Tactical Retreats 3 | . . . . 1 1 . 1 . . Traps | -11 -10 -10 -10 -9 -8 -7 -7 -7 -7 ------- Run | Yrd Mat Min Exi Min Mat Fac Gar Fac Low Traps Triggered 4 | . . . . . 1 . 3 . . Indirectly . | . . . . . . . . . . Trap Hack Attempts . | . . . . . . . . . . Triggered . | . . . . . . . . . . Disarmed . | . . . . . . . . . . Reprogrammed . | . . . . . . . . . . Reused . | . . . . . . . . . . Traps Extracted . | . . . . . . . . . . Installed . | . . . . . . . . . . Triggered . | . . . . . . . . . . Machines | -11 -10 -10 -10 -9 -8 -7 -7 -7 -7 ---------- Run | Yrd Mat Min Exi Min Mat Fac Gar Fac Low Machines Disabled 24 | . . . . . . 24 . . . Max in Single Turn 21 | . . . . . . 21 . . . Machines Repaired . | . . . . . . . . . . Machines Dismantled . | . . . . . . . . . . Machines Sabotaged . | . . . . . . . . . . Overloaded Fab Kills . | . . . . . . . . . . Hacking | -11 -10 -10 -10 -9 -8 -7 -7 -7 -7 --------- Run | Yrd Mat Min Exi Min Mat Fac Gar Fac Low Machines Accessed 8 | . . . 2 . . 5 1 . . Terminals 2 | . . . . . . 1 1 . . Fabricators 1 | . . . . . . 1 . . . Repair Stations . | . . . . . . . . . . Recycling Units 1 | . . . . . . 1 . . . Scanalyzers 1 | . . . . . . 1 . . . Garrison Access 1 | . . . . . . 1 . . . Total Hacks 29 | . . . 19 . . 8 2 . . Successful 27 | . . . 19 . . 8 . . . Failed 2 | . . . . . . . 2 . . Catastrophic 1 | . . . . . . . 1 . . Database Lockouts . | . . . . . . . . . . Manual 1 | . . . 1 . . . . . . Terminals 5 | . . . . . . 3 2 . . Fabricators 1 | . . . . . . 1 . . . Repair Stations . | . . . . . . . . . . Recycling Units 1 | . . . . . . 1 . . . Scanalyzers 2 | . . . . . . 2 . . . Garrison Access 1 | . . . . . . 1 . . . Terminal Hacks 22 | . . . 19 . . 3 . . . Record 20 | . . . 18 . . 2 . . . Prototype ID Bank 1 | . . . . . . 1 . . . Proto ID Catalog 1 | . . . 1 . . . . . . Fabricator Hacks 1 | . . . . . . 1 . . . Network Status 1 | . . . . . . 1 . . . Repair Station Hacks . | . . . . . . . . . . Recycling Unit Hacks 1 | . . . . . . 1 . . . Report Inventory 1 | . . . . . . 1 . . . Scanalyzer 2 | . . . . . . 2 . . . Insert Component 1 | . . . . . . 1 . . . Analyze 1 | . . . . . . 1 . . . Garrison Access Hacks 1 | . . . . . . 1 . . . Unlock Access 1 | . . . . . . 1 . . . Unauthorized Hacks . | . . . . . . . . . . Terminals . | . . . . . . . . . . Fabricators . | . . . . . . . . . . Repair Stations . | . . . . . . . . . . Recycling Units . | . . . . . . . . . . Scanalyzers . | . . . . . . . . . . Garrison Access . | . . . . . . . . . . Data Cores Recovered . | . . . . . . . . . . Used . | . . . . . . . . . . Hacking Detections 4 | . . . . . . 3 1 . . Full Trace Events 1 | . . . . . . . 1 . . Feedback Events . | . . . . . . . . . . Feedback Blocked . | . . . . . . . . . . Robot Schematics Acquired . | . . . . . . . . . . Robots Built . | . . . . . . . . . . Authchips . | . . . . . . . . . . Time . | . . . . . . . . . . Total Robot Build Rating . | . . . . . . . . . . Part Schematics Acquired 1 | . . . . . . 1 . . . Parts Built . | . . . . . . . . . . Authchips . | . . . . . . . . . . Time . | . . . . . . . . . . Total Part Build Rating . | . . . . . . . . . . Parts Repaired . | . . . . . . . . . . Time . | . . . . . . . . . . Parts Recycled . | . . . . . . . . . . Recycled Matter . | . . . . . . . . . . Retrieved Matter . | . . . . . . . . . . Retrieved Components . | . . . . . . . . . . Parts Scanalyzed 1 | . . . . . . 1 . . . Part Schematics Acquired 1 | . . . . . . 1 . . . Parts Damaged . | . . . . . . . . . . Bothacking | -11 -10 -10 -10 -9 -8 -7 -7 -7 -7 ------------ Run | Yrd Mat Min Exi Min Mat Fac Gar Fac Low Used RIF Installer . | . . . . . . . . . . Robots Hacked 2 | . . . . . . 2 . . . Non-combat 2 | . . . . . . 2 . . . Combat . | . . . . . . . . . . Robot Hacks Applied 2 | . . . . . . 2 . . . find_chute 1 | . . . . . . 1 . . . find_recycling 1 | . . . . . . 1 . . . Relay Couplers Released 3 | . . . . . . 3 . . . Programmers 3 | . . . . . . 3 . . . Fabnet Peak Effective % . | . . . . . . . . . . Robots Rewired . | . . . . . . . . . . Allies Hacked . | . . . . . . . . . . Hacks Repelled . | . . . . . . . . . . Allies | -11 -10 -10 -10 -9 -8 -7 -7 -7 -7 -------- Run | Yrd Mat Min Exi Min Mat Fac Gar Fac Low Total Allies . | . . . . . . . . . . Largest Group . | . . . . . . . . . . Highest-Rated Group . | . . . . . . . . . . Highest-Rated Ally . | . . . . . . . . . . Total Orders . | . . . . . . . . . . Ally Attacks . | . . . . . . . . . . Total Damage . | . . . . . . . . . . Kills . | . . . . . . . . . . Allies Corrupted . | . . . . . . . . . . Allies Melted . | . . . . . . . . . . Intel | -11 -10 -10 -10 -9 -8 -7 -7 -7 -7 ------- Run | Yrd Mat Min Exi Min Mat Fac Gar Fac Low Active Infowar (turns) 3985 | . . . 493 441 399 2061 416 116 59 T.N.C. 3985 | . . . 493 441 399 2061 416 116 59 Robot Analysis Total . | . . . . . . . . . . Derelict Logs Recovered 1 | . . . . 1 . . . . . Drone Launches . | . . . . . . . . . . Drone Recoveries . | . . . . . . . . . . Exploration | -11 -10 -10 -10 -9 -8 -7 -7 -7 -7 ------------- Run | Yrd Mat Min Exi Min Mat Fac Gar Fac Low Turns Passed 4577 | 47 138 266 634 441 399 2061 416 116 59 Spaces Moved 2308 | 40 91 175 527 203 155 868 161 61 27 Core 192 | 19 . . . . 23 . 62 61 27 Treads . | . . . . . . . . . . Legs 2116 | 21 91 175 527 203 132 868 99 . . Wheels . | . . . . . . . . . . Hover . | . . . . . . . . . . Flight . | . . . . . . . . . . Fastest Speed 50 | 50 120 120 120 120 120 120 50 150 200 Average Speed 159 | 91 120 120 120 137 156 195 183 188 200 Slowest Speed 260 | 120 120 120 120 190 250 260 260 200 200 Overloaded Moves . | . . . . . . . . . . Propulsion Burnouts . | . . . . . . . . . . Robots Hopped . | . . . . . . . . . . Potential Cave-ins 5 | . . . . . . 5 . . . Cave-ins Triggered . | . . . . . . . . . . Exploration Rate (%) 29 | 4 36 37 91 45 17 21 40 1 6 Regions Visited 9 Branch Regions 4 Pre-discovered Areas 1 | . . . 1 . . . . . . Known Exits Taken 1 | . . . . . . 1 . . . Unknown Exits Taken 7 | 1 1 1 1 1 1 . . 1 . Scrap Searched 2 | . . . . 1 . . . . 1 Spaces Dug 15 | . . 10 . . . 5 . . . Terrain Destroyed 185 | . . 31 . 54 . 78 7 . 15 Melee . | . . . . . . . . . . Projectile 41 | . . . . . . 34 7 . . AOE 144 | . . 31 . 54 . 44 . . 15 Terrain Rammed . | . . . . . . . . . . Walls Destroyed . | . . . . . . . . . . Machines Disabled . | . . . . . . . . . . Actions | -11 -10 -10 -10 -9 -8 -7 -7 -7 -7 --------- Run | Yrd Mat Min Exi Min Mat Fac Gar Fac Low Total 2854 | 50 100 196 528 323 237 1090 236 63 31 Wait 215 | . . 1 . 93 29 76 16 . . Move 2299 | 39 90 174 526 202 154 867 160 60 27 Hop . | . . . . . . . . . . Pick Up 34 | 6 . 2 1 3 4 15 . 2 1 Fast Attach 6 | . . . . . . 6 . . . Attach 31 | 5 . . 1 1 5 14 3 1 1 Detach 4 | . . . . . . 3 1 . . Swap 11 | . . 2 . 2 . 6 1 . . Drop 8 | . . . . . . 8 . . . Fire 219 | . 10 17 . 22 45 95 28 . 2 Melee . | . . . . . . . . . . Ram . | . . . . . . . . . . Kick . | . . . . . . . . . . Crush . | . . . . . . . . . . Escape Stasis 27 | . . . . . . . 27 . . Rewire . | . . . . . . . . . . Trap . | . . . . . . . . . . Miscellaneous . | . . . . . . . . . . Route ------- -11/Scrapyard -10/Materials (discovered 2 exits: [*Mat] / [*Min]) -10/Mines (discovered 3 exits: [*Mat x2] / *Exi) -10/Exiles -9/Mines -8/Materials -7/Factory (discovered 2 exits: [*Low] / Gar) -7/Garrison -7/Factory -7/Lower Caves History --------- Turn | Location | Event 4 | -11/Scrapyard | Discovered new exit (range 15) 48 | -11/Scrapyard | Entered Materials 138 | -10/Materials | Discovered new exit (range 15) 164 | -10/Materials | Discovered new exit (range 6) 186 | -10/Materials | Entered Mines 203 | -10/Mines | Discovered new exit (range 9) 292 | -10/Mines | Assembled infested the area 308 | -10/Mines | Build established: Mutant 363 | -10/Mines | Discovered new exit (range 7) 447 | -10/Mines | Deemed a non-threat by the Exiles lab entrance 447 | -10/Mines | Discovered new exit (range 5) 452 | -10/Mines | Entered Exiles 482 | -10/Exiles | Met 8R-AWN 502 | -10/Exiles | Met EX-HEX 541 | -10/Exiles | Met EX-BIN 556 | -10/Exiles | Aligned with FarCom system 557 | -10/Exiles | Given EX-Vault access code 584 | -10/Exiles | Opened EX-Vault 592 | -10/Exiles | Found Modified TNC 616 | -10/Exiles | Warned to stay clear of 0b10 Research branches 651 | -10/Exiles | Met EX-DEC 661 | -10/Exiles | Learned location of Zion (-7) 709 | -10/Exiles | Visited The Gauntlet 1070 | -10/Exiles | Discovered new exit (range 14) 1086 | -10/Exiles | Left Exiles lab with Modified TNC 1086 | -10/Exiles | Entered Mines 1090 | -9/Mines | Core integrity fell below 50% 1129 | -9/Mines | Met a Derelict bent on vengeance 1468 | -9/Mines | Learned Materials terminal intel 1511 | -9/Mines | Discovered new exit (range 7) 1527 | -9/Mines | Entered Materials 1527 | -8/Materials | Evolved 4 slots: Utility x3, Weapon x1 1528 | -8/Materials | Loaded intel: 12 terminal locations 1898 | -8/Materials | Discovered new exit (range 5) 1919 | -8/Materials | Core integrity fell below 50% 1926 | -8/Materials | Entered Factory 1926 | -7/Factory | Evolved 2 slots: Utility x2 2055 | -7/Factory | Discovered new exit (range 3) 2497 | -7/Factory | Lost 3 parts (2n1u) 2801 | -7/Factory | Build established: Skirmisher 3570 | -7/Factory | Build established: Gunner 3951 | -7/Factory | Identified exit to Garrison 3987 | -7/Factory | Entered Garrison 4333 | -7/Garrison | Core integrity fell below 50% 4366 | -7/Garrison | Core integrity fell below 20% 4370 | -7/Garrison | Lost 7 parts (1p1n2u3w) 4388 | -7/Garrison | Discovered new exit (range 8) 4403 | -7/Garrison | Entered Factory 4484 | -7/Factory | Discovered new exit (range 7) 4519 | -7/Factory | Entered Lower Caves 4574 | -7/Lower Caves | Ambushed by wild Derelicts 4578 | -7/Lower Caves | Destroyed by RM-MC9(g) with Beamcaster Last Messages --------------- EXIT=FOUND Acquired Plasma Cannon. U-05 Engineer works on Matter Pump. LOCATION=UNKNOWN GOAL=ESCAPE System corrupted: Component data lost. Searching scrap... Found Hvy. Rocket Launcher. Found Imp. Aluminum Leg. Found Hvy. Missile Launcher. Found 38 Matter. Acquired 38 matter. P6-5AG(r) collects Imp. Aluminum Leg. Acquired Hvy. Missile Launcher. HK-IQO(r) collects Hvy. Rocket Launcher. RM-MC9(g): "What have we here? Someone sent us a shipment of parts, get out here and collect 'em!" 9C-EYZ(g) destroyed. Critical hit (Burn: +37). Map ----- +----------------------------------------------------+ | ?????????????????????????????????????????????????? | | ?????????????????????????????????????????????????? | | ?????????????????????????????????????????????????? | | ?????????????????????????????????????????????????? | | ?????????????????????????????????????????????????? | | ??????????????????????????????????????? ?????????? | | ??????????????????????????????????????? ????????? | | ???????????????????????????????????????# ????????? | | ???????????????????????????????????????# ????????? | | ??????????????????????????????????????## ????????? | | ?????????????????????????? ???????????# #???????? | | ?????????????????????????? ??????????? ##?????? | | ?????????????????????????? ???????????? #?????? | | ?????????????????????????# ???????????? #?????? | | ????????????????????????# ????????????? ?????? | | ???????????????????????## ????????????? #?????? | | ???????????????????????# ?????????????? #?????? | | ???????????????????????# ???##????????? #?????? | | ??????????????????????## %#### #?????????# #?????? | | ??????????????????????# # g! #?????????# #?????? | | ??????????????????????# % #???????### ##????# | | ??????????????????????# g #????????# ##?? # | | ??????????????????????? g #????##### ## # | | ??????????????????#???## ###### # # | | ??????????????????# ##* # # | | ????????????????### !% @ #### # | | ????????????????# ##??# # | | ???????????????# #######???# ## | | ???????????????# #####?????????# ##? | | ???????????????## ### ##?????????????#### #?? | | ????????????????## ##??###??????????????????###?? | | ?????????????????##??????????????????????????????? | | ?????????????????????????????????????????????????? | | ?????????????????????????????????????????????????? | | ?????????????????????????????????????????????????? | | ?????????????????????????????????????????????????? | | ?????????????????????????????????????????????????? | | ?????????????????????????????????????????????????? | | ?????????????????????????????????????????????????? | | ?????????????????????????????????????????????????? | | ?????????????????????????????????????????????????? | | ?????????????????????????????????????????????????? | | ?????????????????????????????????????????????????? | | ?????????????????????????????????????????????????? | | ?????????????????????????????????????????????????? | | ?????????????????????????????????????????????????? | | ?????????????????????????????????????????????????? | | ?????????????????????????????????????????????????? | | ?????????????????????????????????????????????????? | | ?????????????????????????????????????????????????? | +----------------------------------------------------+ Best States ------------- Heat Dissipation 48 Energy Generation 18 Energy Capacity 150 Matter Stores 300 Matter Capacity 300 Sight Range 16 Terrain Scan Density 10 Armor Coverage 150 Resistance: KI 20 Weapon Shielding 66 Evasion (%) 63 Targeting Accuracy 8 Target Analysis 6 Item Schematics ----------------- Adv. Assault Cannon | -7/Factory | Scanalyzed Robot Schematics ------------------ None Fabricated ------------ Nothing Repaired ---------- Nothing Alien Tech Used ----------------- None Achievements -------------- None Challenges ------------ None Game ------ Seed HypervelocityCoreBox Manual? 0 Play Time 00:28:26 Cumulative 99.4 hours Start 2025.08.21 @ 21:18:47 End 2025.08.22 @ 16:39:41 Sessions 3 Manual Loads 0 Difficulty Rogue Special Mode None Game No. 381 Rogue 381 Adventurer 0 Explorer 0 Win Type - Total 0 Types 0/0/0/0/0/0/0/0/0/0 Lore% 43 Gallery% 41 Achievement% 31 Wizard Run 0 Options --------- Layout 2 ASCII 0 Keyboard 0 Movement Mouse Keybinds 0 Fullscreen 2 Font 24/Smallcaps Map View 50x44 Zoom Use 0% Tactical HUD 0 Map Filters NONE Filters NONE Steam 1 RUN: df060c27-902f-4821-aadf-9882c4df9123